[Event "*** Titled Tuesday Blitz"]
[Site "Chess.com"]
[Date "2021.03.09"]
[Round "2"]
[White "ShahMatKanal"]
[Black "kayrakamer"]
[Result "0-1"]
[WhiteElo "2486"]
[BlackElo "2697"]
[TimeControl "180+1"]
[EndTime "10:18:48 PST"]
[Termination "kayrakamer won by resignation"]

1. d4 {[%clk 0:03:00.9]} 1... Nf6 {[%clk 0:02:59.1]} 2. Nf3 {[%clk 0:03:00.9]}
2... g6 {[%clk 0:02:59.5]} 3. c4 {[%clk 0:03:00.4]} 3... Bg7 {[%clk 0:03:00.1]}
4. Nc3 {[%clk 0:03:00]} 4... O-O {[%clk 0:03:01]} 5. e4 {[%clk 0:03:00.4]} 5...
d6 {[%clk 0:03:01.9]} 6. Be2 {[%clk 0:03:00.6]} 6... Bg4 {[%clk 0:03:02.6]} 7.
Be3 {[%clk 0:02:57.3]} 7... Nfd7 {[%clk 0:03:02.6]} 8. Ng1 {[%clk 0:02:56.8]}
8... Bxe2 {[%clk 0:03:01.9]} 9. Ngxe2 {[%clk 0:02:57.7]} 9... c5 {[%clk
0:03:02.5]} 10. O-O {[%clk 0:02:56.7]} 10... Nc6 {[%clk 0:03:02.2]} 11. Qd2
{[%clk 0:02:40.6]} 11... cxd4 {[%clk 0:02:55.4]} 12. Nxd4 {[%clk 0:02:39.9]}
12... Nde5 {[%clk 0:02:53.6]} 13. b3 {[%clk 0:02:36.3]} 13... Rc8 {[%clk
0:02:49.6]} 14. Rac1 {[%clk 0:02:35.8]} 14... Ng4 {[%clk 0:02:45]} 15. Nxc6
{[%clk 0:02:34.7]} 15... bxc6 {[%clk 0:02:45.5]} 16. Bd4 {[%clk 0:02:27.6]}
16... e5 {[%clk 0:02:40.6]} 17. Be3 {[%clk 0:02:26.8]} 17... Qh4 {[%clk
0:02:37.6]} 18. h3 {[%clk 0:02:07.8]} 18... Nxe3 {[%clk 0:02:37.5]} 19. fxe3
{[%clk 0:02:08.7]} 19... Rcd8 {[%clk 0:02:37.2]} 20. Rf3 {[%clk 0:02:04]} 20...
f5 {[%clk 0:02:32.1]} 21. exf5 {[%clk 0:02:03.7]} 21... gxf5 {[%clk 0:02:29.3]}
22. Rcf1 {[%clk 0:01:58.9]} 22... Qg5 {[%clk 0:02:10.9]} 23. Ne2 {[%clk
0:01:22.5]} 23... d5 {[%clk 0:01:59.9]} 24. cxd5 {[%clk 0:01:19]} 24... cxd5
{[%clk 0:02:00.8]} 25. Kh2 {[%clk 0:00:59.7]} 25... d4 {[%clk 0:01:55.2]} 26.
Rg3 {[%clk 0:00:53.7]} 26... Qh6 {[%clk 0:01:53.6]} 27. Qb2 {[%clk 0:00:44.8]}
27... d3 {[%clk 0:01:45.4]} 28. Ng1 {[%clk 0:00:40.2]} 28... Kh8 {[%clk
0:01:39.1]} 29. Nf3 {[%clk 0:00:33.8]} 29... e4 {[%clk 0:01:37.6]} 30. Nd4
{[%clk 0:00:32.8]} 30... Qd6 {[%clk 0:01:14]} 31. Rf4 {[%clk 0:00:27.2]} 31...
Bxd4 {[%clk 0:01:09.5]} 32. exd4 {[%clk 0:00:26]} 32... Qxd4 {[%clk 0:01:02]}
33. Qa3 {[%clk 0:00:20.5]} 33... Rg8 {[%clk 0:00:57.7]} 34. Rxf5 {[%clk
0:00:10.9]} 34... Rxg3 {[%clk 0:00:54.7]} 35. Qe7 {[%clk 0:00:07.6]} 35... Rxg2+
{[%clk 0:00:46.2]} 36. Kxg2 {[%clk 0:00:07.3]} 36... Rg8+ {[%clk 0:00:46.7]} 37.
Rg5 {[%clk 0:00:07.5]} 37... Rxg5+ {[%clk 0:00:42.6]} 38. Qxg5 {[%clk
0:00:08.4]} 38... Qg7 {[%clk 0:00:42.7]} 39. h4 {[%clk 0:00:07]} 39... Qxg5+
{[%clk 0:00:41.5]} 40. hxg5 {[%clk 0:00:07.3]} 40... d2 {[%clk 0:00:42.4]} 0-1

[Event "*** Titled Tuesday Blitz"]
[Site "Chess.com"]
[Date "2021.03.09"]
[Round "2"]
[White "03revilo"]
[Black "SanchezKelvin"]
[Result "0-1"]
[WhiteElo "2318"]
[BlackElo "2607"]
[TimeControl "180+1"]
[EndTime "10:18:48 PST"]
[Termination "SanchezKelvin won on time"]

1. c4 {[%clk 0:03:00.9]} 1... c5 {[%clk 0:02:59.1]} 2. Nf3 {[%clk 0:02:59.7]}
2... g6 {[%clk 0:02:58.9]} 3. e4 {[%clk 0:02:56.7]} 3... Nc6 {[%clk 0:02:58.5]}
4. d4 {[%clk 0:02:56.6]} 4... cxd4 {[%clk 0:02:58.4]} 5. Nxd4 {[%clk 0:02:57.5]}
5... Bg7 {[%clk 0:02:58]} 6. Be3 {[%clk 0:02:54.4]} 6... Nf6 {[%clk 0:02:57.1]}
7. Nc3 {[%clk 0:02:53.9]} 7... O-O {[%clk 0:02:56.8]} 8. f3 {[%clk 0:02:50.4]}
8... d6 {[%clk 0:02:54.7]} 9. Qd2 {[%clk 0:02:48.5]} 9... Nxd4 {[%clk
0:02:52.7]} 10. Bxd4 {[%clk 0:02:45.9]} 10... Be6 {[%clk 0:02:52]} 11. Nd5
{[%clk 0:02:34.5]} 11... Bxd5 {[%clk 0:02:48.5]} 12. exd5 {[%clk 0:02:10.7]}
12... Nd7 {[%clk 0:02:40.1]} 13. Be2 {[%clk 0:02:06.8]} 13... Bxd4 {[%clk
0:02:39.1]} 14. Qxd4 {[%clk 0:02:07.7]} 14... Qb6 {[%clk 0:02:39.3]} 15. Qxb6
{[%clk 0:02:00.4]} 15... Nxb6 {[%clk 0:02:40.2]} 16. Kd2 {[%clk 0:01:57.4]}
16... Rfc8 {[%clk 0:02:38.6]} 17. Rac1 {[%clk 0:01:47.2]} 17... a5 {[%clk
0:02:37.3]} 18. h4 {[%clk 0:01:36]} 18... h6 {[%clk 0:02:32.4]} 19. f4 {[%clk
0:01:24.4]} 19... h5 {[%clk 0:02:26]} 20. f5 {[%clk 0:01:17.3]} 20... Kg7 {[%clk
0:02:24.2]} 21. Rhf1 {[%clk 0:01:14.5]} 21... Nd7 {[%clk 0:02:21.1]} 22. fxg6
{[%clk 0:01:10.7]} 22... fxg6 {[%clk 0:02:22]} 23. Rf4 {[%clk 0:01:08.7]} 23...
Rf8 {[%clk 0:02:19]} 24. Rcf1 {[%clk 0:01:05.8]} 24... Rxf4 {[%clk 0:02:17.5]}
25. Rxf4 {[%clk 0:01:06.7]} 25... Ne5 {[%clk 0:02:17.3]} 26. c5 {[%clk
0:00:50.6]} 26... Rc8 {[%clk 0:01:28.2]} 27. cxd6 {[%clk 0:00:50.4]} 27... exd6
{[%clk 0:01:28.8]} 28. b4 {[%clk 0:00:47]} 28... b6 {[%clk 0:01:27.3]} 29. Ba6
{[%clk 0:00:40.5]} 29... Ra8 {[%clk 0:01:26.5]} 30. Bb7 {[%clk 0:00:38.8]} 30...
Ra7 {[%clk 0:01:25.4]} 31. Bc6 {[%clk 0:00:29.5]} 31... axb4 {[%clk 0:01:25.2]}
32. Rxb4 {[%clk 0:00:29.4]} 32... Rxa2+ {[%clk 0:01:17.3]} 33. Kc3 {[%clk
0:00:09.3]} 33... Rxg2 {[%clk 0:01:14.1]} 34. Rxb6 {[%clk 0:00:09.4]} 34... Rg3+
{[%clk 0:01:01.7]} 35. Kb4 {[%clk 0:00:07.6]} 35... Rg4+ {[%clk 0:01:00.9]} 36.
Kb5 {[%clk 0:00:06.1]} 36... Rxh4 {[%clk 0:00:42.6]} 37. Bb7 {[%clk 0:00:03.4]}
37... Nf7 {[%clk 0:00:41.9]} 38. Bc8 {[%clk 0:00:01.5]} 38... Rf4 {[%clk
0:00:40.5]} 0-1

[Event "*** Titled Tuesday Blitz"]
[Site "Chess.com"]
[Date "2021.03.09"]
[Round "2"]
[White "Atco84"]
[Black "NikolaGry"]
[Result "0-1"]
[WhiteElo "2436"]
[BlackElo "2663"]
[TimeControl "180+1"]
[EndTime "10:18:49 PST"]
[Termination "NikolaGry won by resignation"]

1. b3 {[%clk 0:03:00.9]} 1... d5 {[%clk 0:02:59.1]} 2. Bb2 {[%clk 0:03:01.2]}
2... c6 {[%clk 0:02:59.5]} 3. Nf3 {[%clk 0:03:00.7]} 3... Bf5 {[%clk 0:02:59.5]}
4. g3 {[%clk 0:03:00.6]} 4... e6 {[%clk 0:02:59.7]} 5. Bg2 {[%clk 0:03:01.2]}
5... h6 {[%clk 0:02:59.6]} 6. O-O {[%clk 0:03:01.3]} 6... Nf6 {[%clk 0:02:59.7]}
7. c4 {[%clk 0:03:01.3]} 7... Be7 {[%clk 0:02:59.5]} 8. d3 {[%clk 0:03:01.2]}
8... O-O {[%clk 0:02:59.4]} 9. Nc3 {[%clk 0:03:01.3]} 9... a5 {[%clk 0:02:58.6]}
10. Qc2 {[%clk 0:03:01.3]} 10... Bh7 {[%clk 0:02:44.5]} 11. Rac1 {[%clk
0:03:00.1]} 11... Na6 {[%clk 0:02:38.7]} 12. Rfd1 {[%clk 0:02:59.2]} 12... Qb8
{[%clk 0:02:20.4]} 13. Qb1 {[%clk 0:02:50.9]} 13... Rd8 {[%clk 0:02:09.5]} 14.
h3 {[%clk 0:02:28.1]} 14... Qa7 {[%clk 0:02:07.9]} 15. Qa1 {[%clk 0:02:18.8]}
15... Bc5 {[%clk 0:02:03.7]} 16. d4 {[%clk 0:02:05.1]} 16... Be7 {[%clk
0:02:00.6]} 17. e3 {[%clk 0:01:56.2]} 17... Nb8 {[%clk 0:01:48.5]} 18. c5 {[%clk
0:01:38.6]} 18... Nbd7 {[%clk 0:01:47.4]} 19. Na4 {[%clk 0:01:38.8]} 19... Rdc8
{[%clk 0:01:44.1]} 20. Nd2 {[%clk 0:01:23.7]} 20... b6 {[%clk 0:01:37.4]} 21.
cxb6 {[%clk 0:01:23]} 21... Nxb6 {[%clk 0:01:36.9]} 22. Nc5 {[%clk 0:01:14.9]}
22... a4 {[%clk 0:01:33.1]} 23. e4 {[%clk 0:01:09.5]} 23... dxe4 {[%clk
0:01:26.9]} 24. Ndxe4 {[%clk 0:01:08.4]} 24... Nxe4 {[%clk 0:01:18.7]} 25. Bxe4
{[%clk 0:01:05.2]} 25... Bxe4 {[%clk 0:01:17.4]} 26. Nxe4 {[%clk 0:01:04.3]}
26... axb3 {[%clk 0:01:12.5]} 27. axb3 {[%clk 0:01:05.2]} 27... Qd7 {[%clk
0:01:08.4]} 28. Qb1 {[%clk 0:01:04.2]} 28... Qd5 {[%clk 0:01:00.7]} 29. Qd3
{[%clk 0:01:00.9]} 29... Nd7 {[%clk 0:00:58.6]} 30. Rc4 {[%clk 0:00:53.6]} 30...
Rab8 {[%clk 0:00:52.8]} 31. Rdc1 {[%clk 0:00:36.3]} 31... Ne5 {[%clk 0:00:48]}
32. Qe3 {[%clk 0:00:33.4]} 32... Nxc4 {[%clk 0:00:47.1]} 33. bxc4 {[%clk
0:00:34.3]} 33... Qf5 {[%clk 0:00:45.9]} 34. g4 {[%clk 0:00:32.7]} 34... Qg6
{[%clk 0:00:42.5]} 35. Bc3 {[%clk 0:00:32.4]} 35... Rb3 {[%clk 0:00:40.4]} 36.
Rd1 {[%clk 0:00:20.4]} 36... Bb4 {[%clk 0:00:35.2]} 37. Rd3 {[%clk 0:00:19.1]}
37... Bxc3 {[%clk 0:00:33.5]} 38. Rxc3 {[%clk 0:00:19.2]} 38... Rxc3 {[%clk
0:00:32.6]} 39. Nxc3 {[%clk 0:00:20.1]} 39... Qc2 {[%clk 0:00:30.4]} 40. Kg2
{[%clk 0:00:20.2]} 40... Rd8 {[%clk 0:00:29.2]} 41. Ne4 {[%clk 0:00:18.9]} 41...
Qxc4 {[%clk 0:00:26.7]} 0-1

[Event "*** Titled Tuesday Blitz"]
[Site "Chess.com"]
[Date "2021.03.09"]
[Round "2"]
[White "chessprincesa1"]
[Black "davidkalashian"]
[Result "0-1"]
[WhiteElo "2251"]
[BlackElo "2608"]
[TimeControl "180+1"]
[EndTime "10:18:49 PST"]
[Termination "davidkalashian won by resignation"]

1. d4 {[%clk 0:03:00.9]} 1... Nf6 {[%clk 0:02:58.6]} 2. c4 {[%clk 0:02:57.4]}
2... e6 {[%clk 0:02:57.8]} 3. Nc3 {[%clk 0:02:57.2]} 3... Bb4 {[%clk 0:02:56.8]}
4. a3 {[%clk 0:02:57.7]} 4... Bxc3+ {[%clk 0:02:56.1]} 5. bxc3 {[%clk
0:02:58.6]} 5... O-O {[%clk 0:02:56]} 6. f3 {[%clk 0:02:59]} 6... c5 {[%clk
0:02:55.4]} 7. e4 {[%clk 0:02:58.9]} 7... Nc6 {[%clk 0:02:53.2]} 8. Bd3 {[%clk
0:02:49.7]} 8... b6 {[%clk 0:02:44.8]} 9. e5 {[%clk 0:02:48]} 9... Ne8 {[%clk
0:02:42]} 10. f4 {[%clk 0:02:46]} 10... Ba6 {[%clk 0:02:26.5]} 11. Nf3 {[%clk
0:02:39.5]} 11... f5 {[%clk 0:02:02.3]} 12. exf6 {[%clk 0:02:35.1]} 12... Nxf6
{[%clk 0:02:01.6]} 13. O-O {[%clk 0:02:32.3]} 13... Na5 {[%clk 0:02:01]} 14. f5
{[%clk 0:02:17.9]} 14... exf5 {[%clk 0:01:52.4]} 15. Bxf5 {[%clk 0:02:18.8]}
15... Bxc4 {[%clk 0:01:49.8]} 16. Re1 {[%clk 0:02:17.1]} 16... Re8 {[%clk
0:01:26.4]} 17. Ne5 {[%clk 0:02:05.4]} 17... Be6 {[%clk 0:01:19.2]} 18. Bc2
{[%clk 0:01:54.3]} 18... d6 {[%clk 0:01:17.1]} 19. Nf3 {[%clk 0:01:51.4]} 19...
Bd5 {[%clk 0:01:08]} 20. Bg5 {[%clk 0:01:44.2]} 20... Rxe1+ {[%clk 0:01:04.1]}
21. Qxe1 {[%clk 0:01:45.1]} 21... Qe8 {[%clk 0:01:00.2]} 22. Qh4 {[%clk
0:01:40.9]} 22... Qf7 {[%clk 0:00:48.4]} 23. Rf1 {[%clk 0:01:24.9]} 23... h6
{[%clk 0:00:40.7]} 24. Bxh6 {[%clk 0:01:11]} 24... gxh6 {[%clk 0:00:38.8]} 25.
Qxh6 {[%clk 0:01:11.9]} 25... Qg7 {[%clk 0:00:37.3]} 26. Qf4 {[%clk 0:00:48.2]}
26... Nc4 {[%clk 0:00:28.4]} 27. Ng5 {[%clk 0:00:44.7]} 27... Rf8 {[%clk
0:00:27.8]} 28. dxc5 {[%clk 0:00:38.2]} 28... bxc5 {[%clk 0:00:25.3]} 29. Bb3
{[%clk 0:00:30.9]} 29... Ne5 {[%clk 0:00:22.8]} 30. Bxd5+ {[%clk 0:00:22]} 30...
Nxd5 {[%clk 0:00:23.7]} 31. Qxf8+ {[%clk 0:00:16.6]} 31... Qxf8 {[%clk
0:00:22.8]} 32. Rxf8+ {[%clk 0:00:15.2]} 32... Kxf8 {[%clk 0:00:23.7]} 33. Ne4
{[%clk 0:00:14.9]} 33... Ke7 {[%clk 0:00:23.7]} 34. c4 {[%clk 0:00:15]} 34...
Nxc4 {[%clk 0:00:23.2]} 0-1

[Event "*** Titled Tuesday Blitz"]
[Site "Chess.com"]
[Date "2021.03.09"]
[Round "2"]
[White "DrMamaliga"]
[Black "Faqade"]
[Result "0-1"]
[WhiteElo "2351"]
[BlackElo "2634"]
[TimeControl "180+1"]
[EndTime "10:18:50 PST"]
[Termination "Faqade won by resignation"]

1. c4 {[%clk 0:03:00.6]} 1... Nf6 {[%clk 0:02:59.4]} 2. Nf3 {[%clk 0:02:59.4]}
2... g6 {[%clk 0:02:59.8]} 3. b4 {[%clk 0:02:58]} 3... Bg7 {[%clk 0:02:59.2]} 4.
Bb2 {[%clk 0:02:58.4]} 4... O-O {[%clk 0:02:59.8]} 5. g3 {[%clk 0:02:58.8]} 5...
d6 {[%clk 0:03:00.2]} 6. Bg2 {[%clk 0:02:59.2]} 6... a5 {[%clk 0:02:59.6]} 7. b5
{[%clk 0:02:59.1]} 7... e5 {[%clk 0:02:59.4]} 8. d3 {[%clk 0:02:59.4]} 8... Re8
{[%clk 0:02:57.9]} 9. e4 {[%clk 0:02:59.2]} 9... Nbd7 {[%clk 0:02:58.2]} 10. O-O
{[%clk 0:02:59.1]} 10... Nc5 {[%clk 0:02:58.6]} 11. Nc3 {[%clk 0:02:59.5]} 11...
Bg4 {[%clk 0:02:57.4]} 12. h3 {[%clk 0:02:58.7]} 12... Bxf3 {[%clk 0:02:57.2]}
13. Qxf3 {[%clk 0:02:59.6]} 13... Ne6 {[%clk 0:02:57.3]} 14. Ne2 {[%clk
0:02:55.5]} 14... Nd7 {[%clk 0:02:57]} 15. Qe3 {[%clk 0:02:53]} 15... c6 {[%clk
0:02:56.5]} 16. Rab1 {[%clk 0:02:48.2]} 16... Ndc5 {[%clk 0:02:52.9]} 17. bxc6
{[%clk 0:02:41]} 17... bxc6 {[%clk 0:02:51.7]} 18. f4 {[%clk 0:02:41.9]} 18...
exf4 {[%clk 0:02:48.4]} 19. Nxf4 {[%clk 0:02:34.3]} 19... Nxf4 {[%clk
0:02:47.9]} 20. Qxf4 {[%clk 0:02:25.4]} 20... Qe7 {[%clk 0:02:46.2]} 21. Bxg7
{[%clk 0:02:24.3]} 21... Kxg7 {[%clk 0:02:47.1]} 22. Qf3 {[%clk 0:02:16.2]}
22... Ne6 {[%clk 0:02:40.8]} 23. e5 {[%clk 0:02:12.2]} 23... dxe5 {[%clk
0:02:26.3]} 24. Qxc6 {[%clk 0:02:00.8]} 24... Rac8 {[%clk 0:02:24.9]} 25. Qa4
{[%clk 0:01:35.7]} 25... Qa7+ {[%clk 0:01:12.1]} 26. Kh2 {[%clk 0:01:33.2]}
26... Rb8 {[%clk 0:01:12.1]} 27. Bd5 {[%clk 0:01:26.4]} 27... Rxb1 {[%clk
0:00:51.9]} 28. Rxb1 {[%clk 0:01:24.1]} 28... Qf2+ {[%clk 0:00:51.6]} 29. Kh1
{[%clk 0:01:16.1]} 29... Nc7 {[%clk 0:00:25.2]} 30. Bg2 {[%clk 0:01:00]} 30...
Qxg3 {[%clk 0:00:21.4]} 31. Qd7 {[%clk 0:00:53.7]} 31... e4 {[%clk 0:00:21.2]}
32. Rf1 {[%clk 0:00:50.7]} 32... Rf8 {[%clk 0:00:17.5]} 33. Bxe4 {[%clk
0:00:43.5]} 33... Ne6 {[%clk 0:00:16.4]} 34. Bg2 {[%clk 0:00:32.1]} 34... Kg8
{[%clk 0:00:16.4]} 35. Qb7 {[%clk 0:00:21.2]} 35... Qxd3 {[%clk 0:00:14.7]} 36.
Bd5 {[%clk 0:00:20.4]} 36... Qxf1+ {[%clk 0:00:13.4]} 0-1

[Event "*** Titled Tuesday Blitz"]
[Site "Chess.com"]
[Date "2021.03.09"]
[Round "2"]
[White "PawnEatingZombie"]
[Black "HackingKid98"]
[Result "0-1"]
[WhiteElo "2227"]
[BlackElo "2456"]
[TimeControl "180+1"]
[EndTime "10:18:51 PST"]
[Termination "HackingKid98 won on time"]

1. d4 {[%clk 0:03:00.9]} 1... d5 {[%clk 0:02:57.7]} 2. c4 {[%clk 0:03:00.8]}
2... e6 {[%clk 0:02:57.9]} 3. Nc3 {[%clk 0:03:00.8]} 3... c6 {[%clk 0:02:58.2]}
4. e3 {[%clk 0:03:01]} 4... Nf6 {[%clk 0:02:55.9]} 5. Nf3 {[%clk 0:03:01.3]}
5... Nbd7 {[%clk 0:02:55.4]} 6. Qc2 {[%clk 0:03:01.4]} 6... Bd6 {[%clk
0:02:54.5]} 7. Bd3 {[%clk 0:02:59.7]} 7... O-O {[%clk 0:02:54.3]} 8. O-O {[%clk
0:02:58.9]} 8... dxc4 {[%clk 0:02:54.8]} 9. Bxc4 {[%clk 0:02:59.8]} 9... b5
{[%clk 0:02:55.2]} 10. Be2 {[%clk 0:03:00.3]} 10... Bb7 {[%clk 0:02:56]} 11. e4
{[%clk 0:02:59.9]} 11... e5 {[%clk 0:02:56.1]} 12. dxe5 {[%clk 0:03:00.3]} 12...
Nxe5 {[%clk 0:02:57]} 13. Nh4 {[%clk 0:03:00.6]} 13... Re8 {[%clk 0:02:48.9]}
14. Nf5 {[%clk 0:02:54.3]} 14... Bf8 {[%clk 0:02:47]} 15. Bg5 {[%clk 0:02:49.5]}
15... h6 {[%clk 0:02:38.3]} 16. Bh4 {[%clk 0:02:47.8]} 16... Ng6 {[%clk
0:02:37.4]} 17. Rad1 {[%clk 0:02:40.8]} 17... Qa5 {[%clk 0:02:30.4]} 18. Bxf6
{[%clk 0:02:39.5]} 18... gxf6 {[%clk 0:02:31.3]} 19. a3 {[%clk 0:02:12.7]} 19...
b4 {[%clk 0:02:28.1]} 20. axb4 {[%clk 0:02:10.1]} 20... Qxb4 {[%clk 0:02:29]}
21. Rd4 {[%clk 0:01:56.9]} 21... Qc5 {[%clk 0:02:24.7]} 22. Rfd1 {[%clk
0:01:56.9]} 22... Bc8 {[%clk 0:02:18.7]} 23. Nd6 {[%clk 0:01:32.9]} 23... Bxd6
{[%clk 0:02:17]} 24. Rxd6 {[%clk 0:01:33.8]} 24... Be6 {[%clk 0:02:17.6]} 25.
Qd2 {[%clk 0:01:27.5]} 25... Kg7 {[%clk 0:02:08.8]} 26. Bf1 {[%clk 0:01:13.2]}
26... a5 {[%clk 0:02:04.2]} 27. h3 {[%clk 0:01:12.5]} 27... a4 {[%clk
0:02:03.3]} 28. Kh1 {[%clk 0:00:55.6]} 28... a3 {[%clk 0:02:03]} 29. bxa3 {[%clk
0:00:54.8]} 29... Rxa3 {[%clk 0:02:03.9]} 30. Rc1 {[%clk 0:00:46.8]} 30... Qe5
{[%clk 0:00:42.7]} 31. Rxc6 {[%clk 0:00:33.6]} 31... Rb8 {[%clk 0:00:42.2]} 32.
g3 {[%clk 0:00:18.5]} 32... Rbb3 {[%clk 0:00:40.6]} 33. f4 {[%clk 0:00:15.5]}
33... Qa5 {[%clk 0:00:38.6]} 34. h4 {[%clk 0:00:04.2]} 34... Qh5 {[%clk
0:00:32.4]} 35. Kh2 {[%clk 0:00:03.9]} 35... Nxh4 {[%clk 0:00:30.9]} 36. gxh4
{[%clk 0:00:03.3]} 36... Qxh4+ {[%clk 0:00:31.8]} 37. Kg1 {[%clk 0:00:02.9]}
37... Bg4 {[%clk 0:00:31.5]} 0-1

[Event "*** Titled Tuesday Blitz"]
[Site "Chess.com"]
[Date "2021.03.09"]
[Round "2"]
[White "BahadirOzen"]
[Black "KonstantinB_1983"]
[Result "1-0"]
[WhiteElo "2766"]
[BlackElo "2514"]
[TimeControl "180+1"]
[EndTime "10:18:54 PST"]
[Termination "BahadirOzen won by resignation"]

1. g3 {[%clk 0:03:00.9]} 1... d5 {[%clk 0:02:58.8]} 2. Bg2 {[%clk 0:03:01.4]}
2... c6 {[%clk 0:02:58.9]} 3. Nf3 {[%clk 0:03:01.3]} 3... Nf6 {[%clk 0:02:59.2]}
4. O-O {[%clk 0:03:01.8]} 4... Bf5 {[%clk 0:02:59.1]} 5. d3 {[%clk 0:03:02.3]}
5... h6 {[%clk 0:02:59.2]} 6. b3 {[%clk 0:02:59.6]} 6... e6 {[%clk 0:02:59.5]}
7. Bb2 {[%clk 0:03:00.2]} 7... Be7 {[%clk 0:02:59.5]} 8. c4 {[%clk 0:03:00.6]}
8... Nbd7 {[%clk 0:02:58.7]} 9. Nbd2 {[%clk 0:03:01.1]} 9... O-O {[%clk
0:02:57.7]} 10. a3 {[%clk 0:03:01.4]} 10... Re8 {[%clk 0:02:56.4]} 11. b4 {[%clk
0:03:01.3]} 11... Bf8 {[%clk 0:02:55.1]} 12. Qc2 {[%clk 0:02:59.2]} 12... e5
{[%clk 0:02:51.4]} 13. e4 {[%clk 0:02:59.6]} 13... dxe4 {[%clk 0:02:50.5]} 14.
dxe4 {[%clk 0:03:00.5]} 14... Bg4 {[%clk 0:02:48.9]} 15. c5 {[%clk 0:02:58.4]}
15... Qc7 {[%clk 0:02:46.7]} 16. h3 {[%clk 0:02:57.2]} 16... Be6 {[%clk
0:02:41.8]} 17. Nc4 {[%clk 0:02:54.7]} 17... Bxc4 {[%clk 0:02:39.8]} 18. Qxc4
{[%clk 0:02:55.6]} 18... g6 {[%clk 0:02:34.9]} 19. Nh4 {[%clk 0:02:54.2]} 19...
Kg7 {[%clk 0:02:26.9]} 20. Rfd1 {[%clk 0:02:54.2]} 20... Rad8 {[%clk 0:02:25.3]}
21. Nf3 {[%clk 0:02:40.7]} 21... Kg8 {[%clk 0:02:19.9]} 22. Rd2 {[%clk
0:02:30.4]} 22... Bg7 {[%clk 0:02:09.9]} 23. Rad1 {[%clk 0:02:29.7]} 23... Nh7
{[%clk 0:02:03.5]} 24. Rd6 {[%clk 0:02:24.9]} 24... Ndf8 {[%clk 0:01:50.8]} 25.
Bxe5 {[%clk 0:02:03.4]} 25... Bxe5 {[%clk 0:01:42.3]} 26. Nxe5 {[%clk
0:02:03.5]} 26... Ne6 {[%clk 0:01:31.8]} 27. f4 {[%clk 0:02:03]} 27... Rxd6
{[%clk 0:01:22.4]} 28. cxd6 {[%clk 0:02:01.1]} 28... Qb6+ {[%clk 0:01:21.5]} 29.
Kh2 {[%clk 0:02:01.6]} 29... Nhf8 {[%clk 0:01:18]} 30. Ng4 {[%clk 0:01:57.8]}
30... Nd7 {[%clk 0:01:11.8]} 31. Nxh6+ {[%clk 0:01:54]} 31... Kg7 {[%clk
0:01:12]} 32. Ng4 {[%clk 0:01:53.8]} 32... a5 {[%clk 0:01:10.4]} 33. Qc3+ {[%clk
0:01:52.9]} 33... f6 {[%clk 0:01:09.6]} 34. e5 {[%clk 0:01:42.4]} 34... f5
{[%clk 0:01:05.7]} 35. Ne3 {[%clk 0:01:41.7]} 35... axb4 {[%clk 0:01:03.9]} 36.
axb4 {[%clk 0:01:42.6]} 36... Ra8 {[%clk 0:01:02.4]} 37. Nc4 {[%clk 0:01:39.3]}
37... Qf2 {[%clk 0:00:59.3]} 38. Na5 {[%clk 0:01:28.5]} 38... Rh8 {[%clk
0:00:51.6]} 39. Qd2 {[%clk 0:01:09.3]} 39... Qb6 {[%clk 0:00:46.1]} 40. Nb3
{[%clk 0:01:02.2]} 40... Ra8 {[%clk 0:00:39.3]} 41. Nd4 {[%clk 0:01:01.5]} 41...
Nxd4 {[%clk 0:00:36]} 42. Qxd4 {[%clk 0:01:02.4]} 42... Qxd4 {[%clk 0:00:35.1]}
43. Rxd4 {[%clk 0:01:03.3]} 43... Nf8 {[%clk 0:00:34]} 44. Bf1 {[%clk
0:01:01.5]} 44... Ne6 {[%clk 0:00:33]} 45. Rd2 {[%clk 0:01:01.4]} 45... b5
{[%clk 0:00:31.2]} 46. Bg2 {[%clk 0:01:01.4]} 46... Ra6 {[%clk 0:00:29.5]} 47.
d7 {[%clk 0:01:00.4]} 47... Nd8 {[%clk 0:00:27.7]} 48. Rd6 {[%clk 0:01:00.9]}
48... Kf7 {[%clk 0:00:26.9]} 49. g4 {[%clk 0:01:01.4]} 49... fxg4 {[%clk
0:00:25.4]} 50. hxg4 {[%clk 0:01:02.3]} 50... Ra2 {[%clk 0:00:23.6]} 51. Kg3
{[%clk 0:01:00]} 51... Ra3+ {[%clk 0:00:22.7]} 52. Bf3 {[%clk 0:00:56.1]} 52...
Ke7 {[%clk 0:00:20.7]} 53. Rxg6 {[%clk 0:00:56.3]} 53... Ne6 {[%clk 0:00:19.8]}
54. Rxe6+ {[%clk 0:00:55.6]} 54... Kxe6 {[%clk 0:00:19.1]} 55. d8=Q {[%clk
0:00:55.1]} 1-0

[Event "*** Titled Tuesday Blitz"]
[Site "Chess.com"]
[Date "2021.03.09"]
[Round "2"]
[White "Lestofante90"]
[Black "Grimlock_Glasgow"]
[Result "1-0"]
[WhiteElo "2750"]
[BlackElo "2509"]
[TimeControl "180+1"]
[EndTime "10:18:54 PST"]
[Termination "Lestofante90 won by resignation"]

1. Nf3 {[%clk 0:02:54.7]} 1... d5 {[%clk 0:02:58.3]} 2. g3 {[%clk 0:02:54.8]}
2... Bg4 {[%clk 0:02:57.1]} 3. Bg2 {[%clk 0:02:54.5]} 3... Nd7 {[%clk
0:02:57.1]} 4. d4 {[%clk 0:02:44.5]} 4... e6 {[%clk 0:02:52.8]} 5. O-O {[%clk
0:02:43.3]} 5... c6 {[%clk 0:02:51.9]} 6. Nbd2 {[%clk 0:02:39.4]} 6... Bd6
{[%clk 0:02:50.6]} 7. e4 {[%clk 0:02:37.1]} 7... Ne7 {[%clk 0:02:46.4]} 8. c3
{[%clk 0:02:36.5]} 8... O-O {[%clk 0:02:44.1]} 9. Re1 {[%clk 0:02:33.7]} 9... b5
{[%clk 0:02:36.8]} 10. h3 {[%clk 0:02:27]} 10... Bh5 {[%clk 0:02:34.3]} 11. a4
{[%clk 0:02:05.6]} 11... Nb6 {[%clk 0:02:31.2]} 12. axb5 {[%clk 0:01:49.6]}
12... cxb5 {[%clk 0:02:32.1]} 13. exd5 {[%clk 0:01:49.9]} 13... Nexd5 {[%clk
0:02:28.7]} 14. Ne4 {[%clk 0:01:43.8]} 14... a5 {[%clk 0:02:26]} 15. Nxd6 {[%clk
0:01:41.8]} 15... Qxd6 {[%clk 0:02:25.2]} 16. Qb3 {[%clk 0:01:32.5]} 16... b4
{[%clk 0:02:11.8]} 17. Ne5 {[%clk 0:01:26.9]} 17... a4 {[%clk 0:02:04.7]} 18.
Qc2 {[%clk 0:01:26.6]} 18... Rfc8 {[%clk 0:01:44.6]} 19. c4 {[%clk 0:01:06.7]}
19... Qc7 {[%clk 0:01:12.9]} 20. c5 {[%clk 0:00:40]} 20... f6 {[%clk 0:00:56.6]}
21. Ng4 {[%clk 0:00:32.3]} 21... Qc6 {[%clk 0:00:44.6]} 22. Qe2 {[%clk
0:00:27.7]} 22... Bxg4 {[%clk 0:00:30.9]} 23. hxg4 {[%clk 0:00:24.9]} 23... Re8
{[%clk 0:00:21.3]} 24. cxb6 {[%clk 0:00:23.6]} 24... Qxb6 {[%clk 0:00:21.7]} 25.
Be3 {[%clk 0:00:23.1]} 25... a3 {[%clk 0:00:20]} 26. bxa3 {[%clk 0:00:22.6]}
26... bxa3 {[%clk 0:00:20.9]} 27. Reb1 {[%clk 0:00:21.7]} 27... Qa5 {[%clk
0:00:18.5]} 28. Rb3 {[%clk 0:00:21.1]} 28... a2 {[%clk 0:00:15.9]} 29. Rb2
{[%clk 0:00:20.4]} 29... Qc3 {[%clk 0:00:11.6]} 30. Raxa2 {[%clk 0:00:17.9]}
30... Nxe3 {[%clk 0:00:10]} 31. Qxe3 {[%clk 0:00:09.7]} 1-0